Cogmind - Beta 12 @@@ ROGUE MODE // 2023.10.31 @ 02:37:37 Player: Shin Result: Destroyed by P-60 Hacker with Shock Rifle Performance ------------- Evolutions (3) 1500 Regions Visited (9) 1800 Robots Destroyed (87) 435 Value Destroyed (3511) 3511 Prototype IDs (25) 500 Alien Tech Used (0) 0 Bonus (1456) 1456 TOTAL SCORE: 9202 Bonus ------- High Alert Combat Kills 118 Follower Combat Kills 449 Entered Garrisons 200 Used RIF Installer 500 Aligned with FarCom 300 Friendly Fire -111 Cogmind --------- Core Integrity 0/700 Matter 257/300 Energy 100/100 System Corruption 22% Temperature Cool (0) Movement Core (50) Location -7/Storage Parts ------- > --- POWER (1) -------- (None) > --- PROPULSION (4) --- (None) > --- UTILITY (5) ------ (None) > --- WEAPON (3) ------- Longsword +1 > --- INVENTORY (5) ---- Remote Force Field Point Defense System Relay Coupler [Demolisher] (21) Advanced Drone Bay (2/2) Peak State ------------ > --- POWER ------------ Improved Ion Engine > --- PROPULSION ------- Cesium-ion Thruster Field Propulsion Drive Nuclear Pulse Array > --- UTILITY ---------- Advanced Cooling System Huge Storage Unit Advanced Weight Redist. System Targeting Computer Hardened Medium Armor Plating > --- WEAPON ----------- Gauss Rifle Mass Driver Enhanced Gauss Cannon > --- INVENTORY -------- Improved Treads Wheel Improved VTOL Module Melee Analysis Suite Improved Kinecellerator Hardlight Generator Advanced Shield Generator Remote Force Field Point Defense System Authchip [R/Combat] Authchip [R/Combat] Relay Coupler [Sentry] Relay Coupler [Sentry] Relay Coupler [Sentry] Relay Coupler [Demolisher] Relay Coupler [Hunter] Improved Dynamic Insulation System High-powered Tractor Beam Advanced Drone Bay EMP Blaster Improved Remote Datajack Longsword +1 [Rating: 63] Favorites ----------- Power Improved Ion Engine Engine Improved Ion Engine Power Core Micro Nuclear Core Propulsion Aluminum Leg Treads Armored Treads Leg Aluminum Leg Wheel Wheel Flight Unit Nuclear Pulse Array Utility Huge Storage Unit Device Improved Heat Sink Storage Huge Storage Unit Processor Targeting Computer Hackware Relay Coupler [Sentry] Protection Medium Armor Plating Weapon Light Assault Rifle Energy Gun Particle Gun Ballistic Gun Light Assault Rifle Ballistic Cannon Mass Driver Launcher Grenade Launcher Special Weapon Improved Remote Datajack Impact Weapon Heavy Mace Slashing Weapon Longsword +1 Special Melee Weapon Datajack Build | -11 -10 -10 -10 -9 -8 -8 -8 -7 -7 ------- Run | Jun Mat Min Exi Min Mat Gar Mat Fac Sto Slots Evolved 6 | . . . . . 4 . . 2 . Power . | . . . . . . . . . . Propulsion 2 | . . . . . . . . 2 . Utility 3 | . . . . . 3 . . . . Weapon 1 | . . . . . 1 . . . . Parts Attached 157 | 1 8 10 3 7 14 43 4 46 21 Power 12 | . 2 2 . . 1 2 1 2 2 Engine 10 | . 2 2 . . 1 2 1 1 1 Core 2 | . . . . . . . . 1 1 Reactor . | . . . . . . . . . . Propulsion 38 | . . 3 2 . 5 9 1 8 10 Treads 9 | . . . 1 . 1 3 1 1 2 Leg 6 | . . 3 . . . . . 2 1 Wheel 15 | . . . 1 . 4 6 . 1 3 Hover . | . . . . . . . . . . Flight 8 | . . . . . . . . 4 4 Utility 52 | 1 4 2 1 1 5 11 1 23 3 Device 28 | 1 1 . . . . 9 1 14 2 Storage 3 | . 2 . 1 . . . . . . Processor 2 | . . . . . 2 . . . . Hackware 5 | . . . . . . . . 5 . Protection 14 | . 1 2 . 1 3 2 . 4 1 Artifact . | . . . . . . . . . . Weapon 55 | . 2 3 . 6 3 21 1 13 6 Energy Gun 7 | . 2 1 . . . 4 . . . Energy Cannon . | . . . . . . . . . . Ballistic Gun 15 | . . 1 . 2 3 4 1 2 2 Ballistic Cannon 8 | . . . . . . 5 . 3 . Launcher 9 | . . 1 . 3 . 2 . 2 1 Special Weapon 6 | . . . . . . 1 . 4 1 Impact Weapon 3 | . . . . 1 . 2 . . . Slashing Weapon 6 | . . . . . . 2 . 2 2 Piercing Weapon . | . . . . . . . . . . Special Melee Weapon 1 | . . . . . . 1 . . . Unidentified Prototypes 2 | . . . . . . 1 . 1 . Parts Lost 44 | . 2 1 . . 3 16 . 1 21 Power 5 | . 1 . . . 1 1 . . 2 Propulsion 13 | . . . . . . 4 . . 9 Utility 14 | . . 1 . . 1 6 . 1 5 Weapon 12 | . 1 . . . 1 5 . . 5 Highest Loss Streak 9 | . 2 1 . . 3 9 . 1 8 To Critical Strikes . | . . . . . . . . . . Average Slot Usage (%) 93 | . 94 100 86 100 88 93 96 89 83 Engine 9 | . 11 14 14 14 8 8 9 6 . Treads 7 | . . . 12 14 8 8 9 6 7 Leg 8 | . 28 28 2 . . . . 10 10 Wheel 7 | . . . 12 14 9 8 9 7 6 Device 8 | . 5 . . . . 18 15 10 7 Storage 10 | . 14 14 14 14 9 9 9 7 6 Processor 5 | . . . . . 13 9 9 7 5 Hackware 1 | . . . . . . . . 4 9 Protection 7 | . 6 14 1 14 15 5 9 2 . Energy Gun 7 | . 17 14 14 11 . 5 4 . . Ballistic Gun 9 | . 9 13 14 12 20 8 4 6 4 Ballistic Cannon 6 | . . . . . . 7 18 13 9 Naked Turns 1 | . . . . . . . . . 1 Heaviest Build 137 | 15 35 38 91 100 109 120 120 137 117 Greatest Support 40 | 20 20 20 20 20 40 40 23 32 40 Greatest Overweight (x) 38 | . 1 1 5 6 6 11 11 13 38 Average Overweight (x) 5 | . . 1 4 5 5 8 8 8 7 Largest Inventory Capacity 25 | 8 15 15 25 25 25 25 25 25 25 Average Capacity 22 | 8 9 15 23 25 25 25 25 25 24 Most Carried 25 | 7 13 15 18 22 25 25 25 25 25 Average Carried 20 | 6 8 14 17 20 22 24 24 24 23 Final Capacity 25 | 8 15 15 25 25 25 25 25 25 5 Final Carried 25 | 6 13 15 18 22 24 25 25 25 5 Class Distribution -------------------- 34% | Mutant 27% | Scavenger-Mutant 16% | Scavenger-Skirmisher 12% | Bothacker-Skirmisher 4% | Scavenger-Tank Dominant Class ---------------- Mutant | -10/Materials Scavenger-Mutant | -10/Mines Mutant | -10/Exiles Mutant | -9/Mines Mutant | -8/Materials Scavenger-Mutant | -8/Garrison Bothacker-Skirmisher | -8/Materials Scavenger-Skirmisher | -7/Factory Scavenger-Mutant | -7/Storage Resources | -11 -10 -10 -10 -9 -8 -8 -8 -7 -7 ----------- Run | Jun Mat Min Exi Min Mat Gar Mat Fac Sto Matter Collected 3432 | 225 203 141 . 192 203 693 379 954 442 Remotely 569 | . . . . . . . . 298 271 Salvage Created 2891 | 112 632 208 . 98 117 511 159 652 402 Parts 154 | 5 31 12 . 12 7 21 8 35 23 Haulers Intercepted 3 | . . . . . . . 2 . 1 Recyclers Shooed 4 | . 1 . . . 1 . 1 1 . Parts Field Recycled . | . . . . . . . . . . Retrieved Matter . | . . . . . . . . . . Parts Self-Destructed . | . . . . . . . . . . Prevented . | . . . . . . . . . . Kills | -11 -10 -10 -10 -9 -8 -8 -8 -7 -7 ------- Run | Jun Mat Min Exi Min Mat Gar Mat Fac Sto Combat Hostiles Destroyed 68 | . 10 7 . 13 2 13 2 12 9 Guns 25 | . 10 3 . 2 2 5 . 2 1 Cannons 20 | . . . . . . 7 2 7 4 AOE 23 | . . 4 . 11 . 1 . 3 4 Classes Destroyed 14 | 2 3 2 . 2 . 2 1 . 2 Worker 6 | . . 2 . 1 . . . 1 2 Builder 1 | . . . . . . . . . 1 Tunneler 2 | 1 . . . 1 . . . . . Hauler 3 | . . . . . . . 2 . 1 Recycler 8 | 1 4 . . . . . . 3 . Mechanic 1 | . . . . . . . . . 1 Watcher 3 | . 1 . . . . . 1 1 . Swarmer 18 | . 5 3 . 7 . . . 3 . Grunt 26 | . 5 2 . . . 6 1 6 6 Sentry 11 | . . 2 . . 2 3 . 1 3 Hunter 2 | . . . . . . 1 1 . . Programmer 5 | . . . . . . 3 . 2 . Zionite 1 | . . . . 1 . . . . . Assembled 6 | . . . . 6 . . . . . Best Kill Streak 8 | 2 8 5 . 6 1 3 1 4 4 Combat Bots Only 4 | . 3 3 . 4 1 3 1 3 2 Max Kills in Single Turn 3 | 1 1 3 . 3 1 1 1 3 2 Gunslinging . | . . . . . . . . . . Exploded 3 | . . 2 . 3 . 1 . 3 1 Melee . | . . . . . . . . . . Uniques/NPCs Destroyed . | . . . . . . . . . . Combat | -11 -10 -10 -10 -9 -8 -8 -8 -7 -7 -------- Run | Jun Mat Min Exi Min Mat Gar Mat Fac Sto Damage Taken 6530 | . 473 412 . 387 138 1749 183 746 2442 Core 1100 | . 57 42 . 104 . 197 . 80 620 Absorbed by Shields 63 | . . . . . . . . 26 37 Regen/Repaired (Parts) 29 | . 29 . . . . . . . . Core Remaining (%) 60 | 100 . . . 18 . . 64 . . Volleys Fired 223 | 5 45 19 . 20 7 53 13 33 28 Largest 3 | 2 2 2 . 2 3 3 3 3 3 Hottest 170 | 70 115 115 . 85 63 170 170 142 142 Shots Fired 471 | 10 90 34 . 28 21 125 39 77 47 Gun 307 | 10 90 30 . 16 21 92 13 23 12 Cannon 115 | . . . . . . 23 26 46 20 Launcher 36 | . . 4 . 12 . 5 . 1 14 Special 13 | . . . . . . 5 . 7 1 Kinetic 335 | 5 43 13 . 9 21 108 35 69 32 Thermal 83 | 5 47 17 . 7 . 3 4 . . Explosive 36 | . . 4 . 12 . 5 . 1 14 Electromagnetic 4 | . . . . . . 4 . . . Robot Hit Streak 16 | 2 8 8 . 7 16 13 14 12 13 Robot Miss Streak 10 | 3 10 1 . 4 2 3 3 5 1 Penetration Max 1 | . . . . . . . 1 1 1 Secondary Targets 3 | . 1 . . . . 2 . . . Max Gunslinging Chain 1 | . 1 . . . . 1 . . . Shots Hit Robots 274 | 4 38 25 . 9 17 83 22 46 30 Core Hits 166 | 3 26 15 . 20 5 42 6 22 27 Critical Kills 1 | . . . . . . . . 1 . Critical Parts Destroyed 3 | . . . . . . 1 1 . 1 Critical Strikes 10 | . 1 . . . . 1 2 4 2 Burn 1 | . 1 . . . . . . . . Destroy 4 | . . . . . . 1 1 1 1 Blast 5 | . . . . . . . 1 3 1 Melee Attacks 28 | . . . . 4 . 15 . 4 5 Impact 6 | . . . . 4 . 2 . . . Slashing 21 | . . . . . . 12 . 4 5 Piercing . | . . . . . . . . . . Sneak Attacks 1 | . . . . . . . . . 1 Combat Hostiles . | . . . . . . . . . . Follow-up Attacks . | . . . . . . . . . . Damage Inflicted 7501 | 52 571 587 . 812 183 1439 596 1705 1556 Guns 2784 | 52 571 280 . 73 183 859 146 390 230 Cannons 2245 | . . . . . . 358 450 896 541 Explosions 2353 | . . 305 . 739 . 222 . 419 668 Melee 117 | . . . . . . . . . 117 Ramming 2 | . . 2 . . . . . . . Kinetic 4284 | 39 246 86 . 16 183 1119 538 1286 771 Thermal 676 | 13 325 194 . 57 . 29 58 . . Explosive 2353 | . . 305 . 739 . 222 . 419 668 Electromagnetic 69 | . . . . . . 69 . . . Impact . | . . . . . . . . . . Slashing 117 | . . . . . . . . . 117 Piercing . | . . . . . . . . . . Highest Corruption 22 | . . . . . . 3 5 . 22 Average Corruption 4 | . . . . . . 2 3 . 18 Corruption Purged . | . . . . . . . . . . Corruption Blocked . | . . . . . . . . . . Effects 57 | . . . . . . 32 16 . 9 Message Errors 9 | . . . . . . 4 4 . 1 Matter Fused 16 | . . . . . . 11 1 . 4 Heat Flow Errors 12 | . . . . . . 7 5 . . Energy Discharges 5 | . . . . . . 2 2 . 1 Parts Rejected 2 | . . . . . . 1 1 . . Data Loss (minor) 9 | . . . . . . 3 3 . 3 Data Loss (major) 3 | . . . . . . 3 . . . Alerts 1 | . . . . . . 1 . . . Overload Shots . | . . . . . . . . . . Overflow Damage 247 | . . . . 14 . . 35 176 22 Projectiles 53 | . . . . . . . 35 18 . Explosions 194 | . . . . 14 . . . 158 22 Melee . | . . . . . . . . . . Knockbacks 11 | . . . . . . 2 4 4 1 Impact . | . . . . . . . . . . Kinetic 11 | . . . . . . 2 4 4 1 Secondary . | . . . . . . . . . . Self-Inflicted Damage 241 | . . 17 . 15 . 5 . 118 86 Shots 8 | . . 2 . 1 . 1 . 2 2 Rammed . | . . . . . . . . . . Targets Rammed 1 | . . 1 . . . . . . . Kicked 1 | . . 1 . . . . . . . Crushed . | . . . . . . . . . . Highest Temperature 275 | 45 192 275 . 212 53 237 275 250 117 Average Temperature 66 | 23 59 100 . 76 19 68 73 60 51 Received Heat Transfer 1967 | . 99 123 . . 36 699 18 182 810 Effects 1 | . . . . . . . . 1 . Energy Bleed 1 | . . . . . . . . 1 . Siege Activations . | . . . . . . . . . . Robots Corrupted . | . . . . . . . . . . Combat Hostiles . | . . . . . . . . . . Parts Fried . | . . . . . . . . . . Impact Corruptions . | . . . . . . . . . . Robots Melted . | . . . . . . . . . . Combat Hostiles . | . . . . . . . . . . Parts Melted 1 | . . . . . . . 1 . . Heat Transferred 1813 | 37 925 481 . 148 . 74 148 . . Parts Sabotaged . | . . . . . . . . . . Parts Stolen . | . . . . . . . . . . Parts Stripped . | . . . . . . . . . . Power Chain Reactions . | . . . . . . . . . . Missiles Intercepted . | . . . . . . . . . . Alert | -11 -10 -10 -10 -9 -8 -8 -8 -7 -7 ------- Run | Jun Mat Min Exi Min Mat Gar Mat Fac Sto Peak Influence 896 | 10 246 240 . 112 108 896 527 513 216 Initial 436 | . 6 37 . . 43 3 436 123 208 Average 213 | 8 102 102 . 35 57 356 413 253 150 Maximum Alert Level 3 | . 1 1 . . . 3 2 2 1 Low Security (%) 52 | 100 81 68 . 100 100 27 . 38 50 Level 1 27 | . 18 31 . . . 24 46 40 49 Level 2 17 | . . . . . . 35 53 21 . Level 3 3 | . . . . . . 12 . . . Level 4 . | . . . . . . . . . . Level 5 . | . . . . . . . . . . High Security . | . . . . . . . . . . Max Security . | . . . . . . . . . . Squads Dispatched 18 | . 2 1 . . . . . 13 2 Investigation 2 | . 1 1 . . . . . . . Extermination 3 | . . . . . . . . 2 1 Reinforcement 7 | . 1 . . . . . . 5 1 Assault . | . . . . . . . . . . Garrison 6 | . . . . . . . . 6 . Intercept . | . . . . . . . . . . Searches Triggered . | . . . . . . . . . . Construction Impeded 1 | . . . . . . . . 1 . Haulers Reinforced 2 | . . . . . . . . 1 1 Active Scanning Responses . | . . . . . . . . . . Cargo Convoy Interrupts 1 | . . . . . . . . 1 . Stealth | -11 -10 -10 -10 -9 -8 -8 -8 -7 -7 --------- Run | Jun Mat Min Exi Min Mat Gar Mat Fac Sto Distress Signals 4 | . 1 . . . 1 . 1 1 . Communications Jammed . | . . . . . . . . . . Distress Signals . | . . . . . . . . . . Times Spotted 130 | . 20 8 . 26 3 16 11 30 16 Peak Tracking Total 20 | . 5 3 . 20 3 4 3 5 5 Tactical Retreats 7 | . 2 . . 1 . 1 . 2 1 Traps | -11 -10 -10 -10 -9 -8 -8 -8 -7 -7 ------- Run | Jun Mat Min Exi Min Mat Gar Mat Fac Sto Traps Triggered 3 | . 1 . . . . 1 1 . . Indirectly . | . . . . . . . . . . Trap Hack Attempts . | . . . . . . . . . . Triggered . | . . . . . . . . . . Disarmed . | . . . . . . . . . . Reprogrammed . | . . . . . . . . . . Reused . | . . . . . . . . . . Traps Extracted . | . . . . . . . . . . Installed . | . . . . . . . . . . Triggered 1 | . . . . . . . . 1 . Exploded 2 | . . . . . . 2 . . . Machines | -11 -10 -10 -10 -9 -8 -8 -8 -7 -7 ---------- Run | Jun Mat Min Exi Min Mat Gar Mat Fac Sto Machines Disabled 25 | . 1 4 . . . 10 . 7 3 Max in Single Turn 4 | . 1 3 . . . 2 . 4 1 Garrison Relay 3 | . . . . . . 3 . . . Phase Generator 1 | . . . . . . 1 . . . Machines Repaired . | . . . . . . . . . . Machines Sabotaged . | . . . . . . . . . . Overloaded Fab Kills . | . . . . . . . . . . Hacking | -11 -10 -10 -10 -9 -8 -8 -8 -7 -7 --------- Run | Jun Mat Min Exi Min Mat Gar Mat Fac Sto Machines Accessed 23 | . 6 1 2 . 4 1 4 4 1 Terminals 12 | . 4 . . . 3 1 3 . 1 Fabricators 1 | . . . . . . . . 1 . Repair Stations 3 | . 1 . . . . . 1 1 . Recycling Units 2 | . 1 . . . . . . 1 . Scanalyzers 1 | . . . . . . . . 1 . Garrison Access 1 | . . . . . 1 . . . . Total Hacks 62 | . 13 1 5 . 12 1 20 8 2 Successful 37 | . 6 1 5 . 6 1 14 3 1 Failed 25 | . 7 . . . 6 . 6 5 1 Catastrophic 2 | . 1 . . . . . 1 . . Database Lockouts . | . . . . . . . . . . Manual 27 | . 7 . 1 . 4 . 12 3 . Terminals 37 | . 7 . . . 9 1 18 . 2 Fabricators 2 | . . . . . . . . 2 . Repair Stations 8 | . 4 . . . . . 2 2 . Recycling Units 4 | . 2 . . . . . . 2 . Scanalyzers 2 | . . . . . . . . 2 . Garrison Access 3 | . . . . . 3 . . . . Terminal Hacks 20 | . . 1 5 . 2 1 10 . 1 Record 4 | . . . 4 . . . . . . Robot Analysis 5 | . . . . . 1 . 4 . . Open Door 3 | . . 1 . . . 1 . . 1 Level Access Points 1 | . . . . . . . 1 . . Emergency Access Points 1 | . . . . . . . 1 . . Terminal Index 1 | . . . . . . . 1 . . Hauler Manifests 1 | . . . . . . . 1 . . Zone Layout 3 | . . . . . 1 . 2 . . EX-Prototype ID Bank 1 | . . . 1 . . . . . . Fabricator Hacks . | . . . . . . . . . . Repair Station Hacks 6 | . 4 . . . . . 2 . . Scan Component 3 | . 2 . . . . . 1 . . Repair 3 | . 2 . . . . . 1 . . Recycling Unit Hacks . | . . . . . . . . . . Scanalyzer 1 | . . . . . . . . 1 . Insert Component 1 | . . . . . . . . 1 . Garrison Access Hacks 2 | . . . . . 2 . . . . Unlock Access 1 | . . . . . 1 . . . . Coupler Status 1 | . . . . . 1 . . . . Unauthorized Hacks 8 | . 2 . . . 2 . 2 2 . Terminals 6 | . 2 . . . 2 . 2 . . Assimilate 1 | . . . . . 1 . . . . Botnet 5 | . 2 . . . 1 . 2 . . Fabricators 1 | . . . . . . . . 1 . Liberate 1 | . . . . . . . . 1 . Repair Stations . | . . . . . . . . . . Recycling Units 1 | . . . . . . . . 1 . Mask 1 | . . . . . . . . 1 . Scanalyzers . | . . . . . . . . . . Garrison Access . | . . . . . . . . . . Data Cores Recovered . | . . . . . . . . . . Used . | . . . . . . . . . . Hacking Detections 17 | . 6 . . . 4 . 3 4 . Full Trace Events 1 | . 1 . . . . . . . . Feedback Events . | . . . . . . . . . . Feedback Blocked . | . . . . . . . . . . Robot Schematics Acquired . | . . . . . . . . . . Robots Built . | . . . . . . . . . . Authchips . | . . . . . . . . . . Time . | . . . . . . . . . . Total Robot Build Rating . | . . . . . . . . . . Part Schematics Acquired . | . . . . . . . . . . Parts Built . | . . . . . . . . . . Authchips . | . . . . . . . . . . Time . | . . . . . . . . . . Total Part Build Rating . | . . . . . . . . . . Parts Repaired 2 | . 2 . . . . . . . . Time 78 | . 52 . . . . . 26 . . Parts Recycled . | . . . . . . . . . . Recycled Matter . | . . . . . . . . . . Retrieved Matter . | . . . . . . . . . . Retrieved Components . | . . . . . . . . . . Parts Scanalyzed 1 | . . . . . . . . 1 . Part Schematics Acquired . | . . . . . . . . . . Parts Damaged . | . . . . . . . . . . Bothacking | -11 -10 -10 -10 -9 -8 -8 -8 -7 -7 ------------ Run | Jun Mat Min Exi Min Mat Gar Mat Fac Sto Used RIF Installer 1 | . . . . . . 1 . . . Robots Hacked 7 | . . . . . . . . 6 1 Non-combat . | . . . . . . . . . . Combat 7 | . . . . . . . . 6 1 Robot Hacks Applied 7 | . . . . . . . . 6 1 spike_heat 1 | . . . . . . . . . 1 overwrite_iff 1 | . . . . . . . . 1 . formatsys_high 5 | . . . . . . . . 5 . Relay Couplers Released 13 | . . . . . . 13 . . . Machine Destruction 13 | . . . . . . 13 . . . Attached 4 | . . . . . . . . 4 . Fabnet Peak Effective % . | . . . . . . . . . . Robots Rewired 2 | . . . . . . 2 . . . Allies Hacked . | . . . . . . . . . . Hacks Repelled . | . . . . . . . . . . Allies | -11 -10 -10 -10 -9 -8 -8 -8 -7 -7 -------- Run | Jun Mat Min Exi Min Mat Gar Mat Fac Sto Total Allies 12 | . . . . 3 1 2 . 6 . Largest Group 3 | . . . . 3 1 2 2 2 1 Highest-Rated Group 64 | . . . . 40 10 45 45 64 21 Highest-Rated Ally 32 | . . . . 16 10 25 25 32 21 Total Orders 18 | . . . . 6 1 . . 9 2 FOLLOW 4 | . . . . 3 1 . . . . GUARD 5 | . . . . 3 . . . 1 1 AID 1 | . . . . . . . . . 1 EXPLORE 5 | . . . . . . . . 5 . RETURN 3 | . . . . . . . . 3 . Ally Attacks 53 | . . . . 8 . . 9 33 3 Total Damage 1348 | . . . . 36 . . 149 1103 60 Kills 12 | . . . . . . . 2 10 . Allies Corrupted . | . . . . . . . . . . Allies Melted . | . . . . . . . . . . Intel | -11 -10 -10 -10 -9 -8 -8 -8 -7 -7 ------- Run | Jun Mat Min Exi Min Mat Gar Mat Fac Sto Robot Analysis Total 5 | . . . . . 1 . 4 . . Derelict Logs Recovered 3 | . . 1 . 2 . . . . . Drone Launches 8 | . . . . . . . . 8 . Drone Recoveries 8 | . . . . . . . . 8 . Exploration | -11 -10 -10 -10 -9 -8 -8 -8 -7 -7 ------------- Run | Jun Mat Min Exi Min Mat Gar Mat Fac Sto Turns Passed 9658 | 61 1001 1057 428 1102 432 2399 816 1444 918 Spaces Moved 3921 | 37 576 513 236 406 193 839 279 524 318 Core 41 | . . . . . . . . . 41 Treads 271 | . . . . 60 9 108 34 16 44 Legs 1179 | 37 576 513 22 . . . . 25 6 Wheels 2425 | . . . 214 346 184 731 245 483 222 Hover . | . . . . . . . . . . Flight 5 | . . . . . . . . . 5 Fastest Speed 50 | 120 120 190 175 190 150 135 170 155 50 Average Speed 214 | 120 143 190 176 234 189 246 263 233 249 Slowest Speed 1950 | 120 190 190 190 490 490 560 560 560 1950 Overloaded Moves . | . . . . . . . . . . Propulsion Burnouts . | . . . . . . . . . . Robots Hopped . | . . . . . . . . . . Cave-ins Triggered 2 | . . . . . . . . . 2 Exploration Rate (%) 45 | 4 76 86 60 78 11 68 21 13 39 Regions Visited 9 Branch Regions 4 Pre-discovered Areas 1 | . . . 1 . . . . . . Known Exits Taken 3 | . . . . . 1 . 1 1 . Unknown Exits Taken 5 | 1 1 1 1 1 . . . . . Scrap Searched 3 | . . 1 . 2 . . . . . Spaces Dug 31 | . . . . 12 . . . 5 14 Terrain Destroyed 342 | . . 13 . 54 . 108 15 47 105 Melee 10 | . . . . 4 . . . 4 2 Projectile 47 | . . . . . . 5 15 23 4 AOE 285 | . . 13 . 50 . 103 . 20 99 Terrain Rammed . | . . . . . . . . . . Walls Destroyed . | . . . . . . . . . . Machines Disabled . | . . . . . . . . . . Actions | -11 -10 -10 -10 -9 -8 -8 -8 -7 -7 --------- Run | Jun Mat Min Exi Min Mat Gar Mat Fac Sto Total 4756 | 43 664 565 248 524 243 1058 335 680 396 Wait 248 | . 19 5 . 83 15 49 25 42 10 Move 3912 | 36 575 512 235 405 193 838 278 523 317 Hop . | . . . . . . . . . . Pick Up 107 | 1 13 9 6 5 11 34 7 13 8 Fast Attach 10 | . 1 . . . . 2 1 4 2 Attach 63 | 1 4 2 . 1 8 15 1 16 15 Detach 9 | . . . . . 1 . . 7 1 Swap 84 | . 3 8 3 6 6 26 2 26 4 Drop 66 | . 4 9 4 . 2 22 8 12 5 Fire 223 | 5 45 19 . 20 7 53 13 33 28 Melee 28 | . . . . 4 . 15 . 4 5 Ram . | . . . . . . . . . . Kick 1 | . . 1 . . . . . . . Crush . | . . . . . . . . . . Escape Stasis 1 | . . . . . . . . . 1 Rewire 4 | . . . . . . 4 . . . Trap . | . . . . . . . . . . Miscellaneous . | . . . . . . . . . . Route ------- -11/Junkyard -10/Materials (discovered 3 exits: [*Mat x2] / *Min) -10/Mines (discovered 3 exits: [*Mat x2] / *Exi) -10/Exiles (discovered 2 exits: [*Min x2]) -9/Mines -8/Materials -8/Garrison (discovered 2 exits: *Mat x2) -8/Materials (discovered 3 exits: *Fac x3) -7/Factory -7/Storage (discovered 1 exit: Rec) History --------- Turn | Location | Event 1 | -11/Junkyard | Discovered new exit (range 2) 62 | -11/Junkyard | Entered Materials 243 | -10/Materials | Discovered new exit (range 14) 315 | -10/Materials | Build established: Mutant 423 | -10/Materials | Repaired Seismic Detector 538 | -10/Materials | Repaired Seismic Detector? 725 | -10/Materials | Discovered new exit (range 16) 821 | -10/Materials | Discovered new exit (range 4) 1063 | -10/Materials | Entered Mines 1418 | -10/Mines | Discovered new exit (range 3) 1427 | -10/Mines | Met a Derelict shopkeep closing up shop 1775 | -10/Mines | Build established: Scavenger-Mutant 2066 | -10/Mines | Discovered new exit (range 6) 2110 | -10/Mines | Deemed a non-threat by the Exiles lab entrance 2112 | -10/Mines | Discovered new exit (range 5) 2120 | -10/Mines | Entered Exiles 2183 | -10/Exiles | Discovered new exit (range 15) 2206 | -10/Exiles | Met 8R-AWN 2237 | -10/Exiles | Met EX-HEX 2297 | -10/Exiles | Met EX-BIN 2316 | -10/Exiles | Aligned with FarCom system 2318 | -10/Exiles | Given EX-Vault access code 2360 | -10/Exiles | Opened EX-Vault 2375 | -10/Exiles | Found Longsword +1 2415 | -10/Exiles | Warned to stay clear of 0b10 Research branches 2433 | -10/Exiles | Exiles lab attacked by MAIN.C 2456 | -10/Exiles | Build established: Mutant 2478 | -10/Exiles | Learned location of Zion (-6) 2530 | -10/Exiles | Discovered new exit (range 10) 2548 | -10/Exiles | Left Exiles lab with Longsword +1 2548 | -10/Exiles | Entered Mines 2741 | -9/Mines | Learned Materials security intel 2802 | -9/Mines | Assisted by bots powering up and referring to "LRC-V3" 3158 | -9/Mines | Assembled infested the area 3235 | -9/Mines | Core integrity fell below 50% 3458 | -9/Mines | Discovered new exit (range 9) 3592 | -9/Mines | Core integrity fell below 20% 3650 | -9/Mines | Entered Materials 3650 | -8/Materials | Evolved 4 slots: Utility x3, Weapon x1 3907 | -8/Materials | Lost 3 parts (1p1u1w) 4082 | -8/Materials | Identified exit to Garrison 4082 | -8/Materials | Entered Garrison 4082 | -8/Garrison | Accompanied by 1 ally 4232 | -8/Garrison | Triggered checkpoint 4281 | -8/Garrison | Build established: Scavenger-Tank 4318 | -8/Garrison | Triggered checkpoint 4388 | -8/Garrison | Lost 9 parts (1p1n5u2w) 4510 | -8/Garrison | Triggered checkpoint 4608 | -8/Garrison | Garrison Relay disabled 4740 | -8/Garrison | Phase Generator disabled 4783 | -8/Garrison | P-60 Hacker assimilated allied Technician 3a 4907 | -8/Garrison | Build established: Scavenger-Mutant 5007 | -8/Garrison | Discovered new exit (range 15) 5323 | -8/Garrison | Garrison Relay disabled 5405 | -8/Garrison | Spotted B-75 Beast 5564 | -8/Garrison | Lost 4 parts (1n1u2w) 5805 | -8/Garrison | Garrison Relay disabled 6199 | -8/Garrison | Installed Relay Interface Framework 6451 | -8/Garrison | Discovered new exit (range 12) 6481 | -8/Garrison | Entered Materials 6481 | -8/Materials | Accompanied by 2 allies 6516 | -8/Materials | Build established: Bothacker-Skirmisher 6989 | -8/Materials | Identified exit to Factory 7297 | -8/Materials | Entered Factory 7297 | -7/Factory | Evolved 2 slots: Propulsion x2 7298 | -7/Factory | Identified exit to Storage 7635 | -7/Factory | Garrison activated, responded to threat 7981 | -7/Factory | Build established: Scavenger-Skirmisher 8474 | -7/Factory | Garrison activated, responded to threat 8646 | -7/Factory | Cargo convoy interrupted 8741 | -7/Factory | Entered Storage 8741 | -7/Storage | Accompanied by 1 ally 8742 | -7/Storage | Identified exit to Recycling 9379 | -7/Storage | Lost 8 parts (1p3n1u3w) 9486 | -7/Storage | Crushed by falling debris 9486 | -7/Storage | System corruption reached 10% 9517 | -7/Storage | Lost 5 parts (1p1n3u) 9546 | -7/Storage | Crushed by falling debris 9621 | -7/Storage | Core integrity fell below 50% 9636 | -7/Storage | Core integrity fell below 20% 9636 | -7/Storage | Released all parts (2) 9654 | -7/Storage | Lost 6 parts (3n1u2w) 9659 | -7/Storage | Destroyed by P-60 Hacker with Shock Rifle Last Messages --------------- 09615_ U-05 Engineer lays Concrete. 09617_ Wheel destroyed. 09620_ Cesium-ion Thruster destroyed. 09621_ U-05 Engineer builds a Door. 09623_ Field Propulsion Drive destroyed. 09625_ U-05 Engineer builds a Wall. 09627_ The unstable cave ceiling collapses. 09629_ Critical hit (Burn: +37). 09633_ System corrupted: Matter fused (-8). 09636_ Released Imp. VTOL Module. 09636_ Released Huge Storage Unit. 09637_ Acquired Longsword +1. 09638_ U-05 Engineer lays Concrete. 09647_ Sneak attack on M-28 Smith. 09647_ M-28 Smith destroyed. 09648_ System corrupted: Matter fused (-10). 09648_ K-01 Serf collects debris. 09648_ U-05 Engineer lays Concrete. 09649_ K-01 Serf destroyed. 09649_ Acquired 22 matter. Map ----- +----------------------------------------------------+ | ?????????????????????????????????????????????????# | | ??????????????????????????????????????????????#### | | ??????????????????????????????????????????????# | | ??????????????????????????????????????????????# | | ??????????????????????????????????????????????# | | ??????????????????????????????????????????????# | | ??????????????????????????????????????????????# ## | | ??????????????????????????????????????????????# ?# | | ?????????????????????????????????????????????? ?# | | ?????????????????????????????????????????????# ??# | | ??????????????????????????????????????+####### ??# | | ??????????????????????????????????? # | | ??????????????????????????????????? + | | ??????????????????????????????????????????+#####+# | | ????????????????????????????????#? ??????????????# | | ????????????????????????????????# w ????????????# | | ??????????????Y?????????????????# ????????????# | | ????????????????????????#######?# ???????????# | | ????????????????????????# #?# ???????????# | | ????????????????????????# ### ??????????? | | ????????????????????????# + ??????????? | | ????????????????????????# ## ?????????? | | ????????????????????????# ! !## ?????????? | | ????????????????????????#/! ## ?????????? | | ????????????????????????+ [ ## ########## | | ????????????????????????#@ ## % | | ????????????????????????# ## ######+# | | ????????????????????????# ## ####### #????# T | | ????????????????????????# ## #??####+###### # | | ???????????????????#????# ## ##?# ##]# | | ???????????????????# ####p### #?# "#### | | ???????????????????# #?# |"#??? | | ???????????????????# ### "#??? | | ???????????????????# ######## ### = T###? | | ???????????????????# w?######## ! # # " ## | | ???????????????????#???# # ! # * " # | | ???????????????????????# %= # #= # | | ???????????????????????# g # # #### | | ???????????????????????# g ##+## # #" | | ???????????????????????# # == " | | ???????????????????????# # !!== * " | | ???????????????????????# # ## # # ## " | | ???????????????????????# # # # = # | | ???????????????????????# # # !#| # | | ???????????????????????# # #!#!! """" # | | ???????????????????????# + !!=/!!!"??" # | | ???????????????????????###############!! "??" #### | | ?????????????????????????????????????# ! "??" #??? | | ?????????????????????????????????????# "??" #??? | | ?????????????????????????????????????# "??" #??? | +----------------------------------------------------+ Best States ------------- Heat Dissipation 73 Energy Generation 18 Energy Capacity 290 Matter Stores 300 Matter Capacity 300 Sight Range 16 Terrain Scan Density 10 ECM Strength 1 Additional Mass Support 9 EM Shielding 3 Armor Coverage 600 Evasion (%) 55 Targeting Accuracy 10 Recoil Reduction 2 Kinecelleration 40 Relay Coupler Types 2 Relay Coupler Value 22 Authchip Count 4 Item Schematics ----------------- None Robot Schematics ------------------ None Fabricated ------------ Nothing Alien Tech Used ----------------- None Achievements -------------- None Challenges ------------ None Game ------ Seed CargoChromaticTriangulator Manual? 0 Play Time 01:45:29 Cumulative 152.7 hours Start 2023.10.31 @ 00:43:40 End 2023.10.31 @ 02:37:37 Sessions 1 Manual Loads 0 Difficulty Rogue Special Mode None Game No. 109 Rogue 104 Adventurer 0 Explorer 5 Win Type - Total 2 Types 2/0/0/0/0/0/0/0/0 Lore% 58 Gallery% 67 Achievement% 48 Wizard Run 0 Options --------- ASCII 0 Keyboard 0 Movement Arrows Keybinds 1 Fullscreen 1 Font 18/TerminusBold Map View 76x50 Tactical HUD 1 Map Filters NONE Filters NONE Steam 1 RUN: 98da9058-bc6d-41c1-98e5-b00873574cb6